bitfinex-derivatives/quotes_ETHF0:USTF0_20250421
["timestamp","ask_amount","ask_price","bid_price","bid_amount"]
[1745265639671,6.17977,1575.3,1575.2,6.146]
[1745265639976,2.97197,1575.3,1575.2,7.41565]
[1745265640278,1.27589052,1575.4,1575.3,1.26957]
[1745265640479,0.00634052,1575.4,1575.3,4.47737]
[1745265640983,1.27583052,1575.4,1575.3,1.26957]
[1745265641175,1.27583052,1575.4,1575.3,4.47737]
[1745265641576,0.00634052,1575.4,1575.3,4.47737]
[1745265641884,0.00634052,1575.4,1575.2,7.9444]
[1745265642074,1.26957,1575.3,1575.2,9.21402]
[1745265642375,1.26957,1575.3,1575.2,7.9444]
[1745265642582,3.08597,1575.3,1575.2,6.146]
[1745265643181,1.27589052,1575.4,1575.3,1.26957]
[1745265643379,1.27589052,1575.4,1575.3,3.03287]
[1745265643581,1.27589052,1575.4,1575.3,3.93987]
[1745265644183,0.00634052,1575.4,1575.3,3.93987]
[1745265644373,0.00634052,1575.4,1575.3,7.14767]
[1745265645374,1.26934,1575.7,1575.6,1.26929]
[1745265645582,1.26906,1576.0,1575.9,1.26904]
[1745265646184,1.26912,1575.9,1575.8,1.2691]
[1745265646480,3.17254,1576.0,1575.7,2.70861083]
[1745265646671,1.26915,1575.9,1575.8,1.26914]
[1745265647475,2.99235,1575.9,1575.8,1.26914]
[1745265647778,1.26917,1575.8,1575.7,10.12380083]
[1745265647981,2.99235,1575.9,1575.8,1.26917]
[1745265648182,1.26917,1575.8,1575.7,10.12379083]
[1745265648383,2.99235,1575.9,1575.8,1.26917]
[1745265648679,1.26898,1576.1,1576.0,1.26901]
[1745265648887,4.19742179,1576.2,1576.1,1.26892]
[1745265649081,4.19742179,1576.2,1576.1,4.47672]
[1745265649274,5.46626179,1576.2,1576.1,4.47672]
[1745265649475,1.26892,1576.1,1576.0,7.41496]
[1745265649685,1.26892,1576.1,1576.0,9.11626]
[1745265649980,2.94642,1576.1,1576.0,9.11626]
[1745265650181,2.94642,1576.1,1576.0,49.91626]
[1745265651479,6.15422,1576.1,1576.0,46.946]
[1745265651978,6.15422,1576.1,1576.0,6.146]
[1745265654079,11.15422,1576.1,1576.0,6.12063782]
[1745265654280,11.15422,1576.1,1576.0,1.26338782]
[1745265654281,18.53613195,1576.1,1576.0,1.26338782]
[1745265654479,1.26917,1575.8,1575.7,8.3e-07]
[1745265654677,1.26925,1575.7,1575.6,8.3e-07]
[1745265654875,3.05455,1575.7,1575.6,8.3e-07]
[1745265655077,8.05455,1575.7,1575.6,8.3e-07]
[1745265655277,3.05455,1575.7,1575.6,8.3e-07]
[1745265656387,3.05455,1575.7,1575.6,1.68370083]
[1745265656780,3.05455,1575.7,1575.6,8.3e-07]
[1745265658385,3.05455,1575.7,1575.5,6.15551083]
[1745265658386,1.26933,1575.6,1575.5,3.80653166]
[1745265658682,11.79323,1575.6,1575.5,3.80653166]
[1745265658891,16.79323,1575.6,1575.5,2.14494166]
[1745265659091,16.79323,1575.6,1575.5,1.66e-06]
[1745265661281,23.72362831,1575.6,1575.5,1.66e-06]
[1745265661590,1.26965,1575.2,1575.1,0.0149]
[1745265661791,9.11645,1575.2,1575.1,0.0149]
[1745265662492,10.14405,1575.2,1575.1,0.0149]
[1745265663286,8.8744,1575.2,1575.0,6.15551083]
[1745265663489,8.8744,1575.2,1575.0,4.21638083]
[1745265663490,3.96983,1575.1,1575.0,4.21638083]
[1745265665793,3.02553,1575.1,1575.0,4.21638083]
[1745265666094,4.48690083,1575.3,1575.0,10.48619083]
[1745265666294,1.26965,1575.2,1575.1,1.7877]
[1745265666794,6.27696083,1575.3,1575.1,3.05742]
[1745265666983,0.00951083,1575.3,1575.1,3.05742]
[1745265667183,0.00951083,1575.3,1575.2,1.7877]
[1745265667495,3.2078,1575.6,1575.4,1.26949]
[1745265667796,4.47713,1575.6,1575.5,2.8233]
[1745265667984,3.2078,1575.6,1575.5,2.8233]
[1745265668186,4.47713,1575.6,1575.5,8.9693]
[1745265669395,4.47713,1575.6,1575.5,6.146]
[1745265670296,16.01363,1575.6,1575.5,6.13648917]
[1745265670894,22.78245103,1575.6,1575.5,4.63677917]
[1745265671094,1.26973,1575.1,1575.0,0.00951083]
[1745265671802,3.07723,1575.1,1575.0,0.00951083]
[1745265672095,3.07723,1575.1,1575.0,6.15551083]
[1745265673090,3.07723,1575.1,1575.0,7.42532083]
[1745265673598,3.07723,1575.1,1575.0,6.15551083]
[1745265673897,3.07723,1575.1,1575.0,7.42532083]
[1745265674099,3.07723,1575.1,1575.0,6.15551083]
[1745265674993,5.1053,1575.2,1575.0,6.15551083]
[1745265674994,4.47752,1575.2,1575.0,6.15551083]
[1745265675184,1.26965,1575.2,1575.1,2.98166]
[1745265675384,11.02153,1575.5,1575.2,1.26965]
[1745265675385,6.26912,1575.3,1575.2,1.26965]
[1745265676000,1.26965,1575.2,1575.1,2.98167]
[1745265676200,4.64,1575.5,1575.2,1.26965]
[1745265676396,3.06108,1575.6,1575.5,1.26941]
[1745265676599,0.00951083,1575.7,1575.6,1.26933]
[1745265676799,0.00951083,1575.7,1575.6,6.93003]
[1745265677105,0.00951083,1575.7,1575.6,13.68593]
[1745265679305,4.9453,1576.1,1576.0,1.26901]
[1745265679900,3.2078,1576.3,1575.9,4.92856]
[1745265680103,3.2078,1576.5,1576.4,1.26862]
[1745265680304,4.8867,1576.5,1576.4,1.26862]
[1745265680996,1.26868,1576.4,1576.3,0.00951083]
[1745265681197,2.94758,1576.4,1576.3,0.00951083]
[1745265682907,2.94758,1576.4,1576.3,1.27827083]
[1745265683103,2.94758,1576.4,1576.3,0.00951083]
[1745265684007,2.94758,1576.4,1576.3,1.27827083]
[1745265684201,1.6789,1576.4,1576.3,1.27827083]
[1745265684502,3.2078,1576.5,1576.4,1.26868]
[1745265684703,1.8024,1576.6,1576.5,1.2686]
[1745265685211,1.8024,1576.6,1576.5,7.4146]
[1745265685504,1.8024,1576.6,1576.5,9.2365]
[1745265687608,3.07092,1576.6,1576.5,9.2365]
[1745265687903,1.8024,1576.6,1576.5,9.2365]
[1745265688323,4.47631,1576.7,1576.6,1.26852]
[1745265688712,1.26852,1576.6,1576.5,9.23647]
[1745265689012,3.06292,1576.6,1576.5,6.146]
[1745265689211,12.69992,1576.6,1576.5,6.13648917]
[1745265689815,7.69992,1576.6,1576.5,6.13648917]
[1745265691030,3.06292,1576.6,1576.5,7.40508917]
[1745265691723,3.06292,1576.6,1576.5,9.10988917]
[1745265692515,3.06292,1576.6,1576.5,6.13648917]
[1745265696215,8.17641553,1576.6,1576.5,4.79636917]
[1745265696427,20.8987641,1576.6,1576.5,1.00026917]
[1745265696623,20.8987641,1576.6,1576.5,9.17e-06]
[1745265696832,1.26868,1576.4,1576.3,1e-05]
[1745265697121,9.19497553,1576.4,1576.3,1e-05]
[1745265697331,21.39727357,1576.4,1576.3,1e-05]
[1745265697523,24.13857357,1576.4,1576.3,1e-05]
[1745265699125,24.13854995,1576.4,1576.3,1e-05]
[1745265701023,30.12254995,1576.4,1576.3,1e-05]
[1745265701227,1.26933,1575.6,1575.5,0.9568]
[1745265701429,4.47713,1575.6,1575.5,0.9568]
[1745265701927,1.26941,1575.5,1575.4,1.7512]
[1745265702133,1.26949,1575.4,1575.3,1.0014]
[1745265702430,4.47729,1575.4,1575.3,2.76211083]
[1745265702620,4.47729,1575.4,1575.3,43.56211083]
[1745265703122,9.47729,1575.4,1575.3,8.3e-07]
[1745265703321,1.26957,1575.3,1575.2,3.03763083]
[1745265703526,3.15917118,1575.3,1575.2,8.3e-07]
[1745265703730,1.26981,1575.0,1574.9,21.07811925]
[1745265703931,9.08361,1575.0,1574.9,21.07811925]
[1745265704526,1.26989,1574.9,1574.8,0.00951083]
[1745265704733,3.02829,1574.9,1574.8,0.00951083]
[1745265707525,10.08213534,1574.9,1574.8,8.3e-07]
[1745265708733,7.63629,1574.9,1574.8,8.3e-07]
[1745265710536,3.2078,1575.0,1574.8,5.00000083]
[1745265710740,3.17411,1575.3,1574.9,3.08929]
[1745265710741,5.87761,1575.3,1574.9,3.08929]
[1745265711036,4.8768,1575.4,1575.2,1.26962]
[1745265711231,4.8768,1575.4,1575.3,1.8194]
[1745265711539,6.14629,1575.4,1575.3,1.8194]
[1745265711737,1.26957,1575.3,1575.1,42.06973]
[1745265711939,2.93857,1575.3,1575.2,1.8194]
[1745265712140,6.14637,1575.3,1575.2,1.8194]
[1745265712742,4.8768,1575.3,1575.2,1.8194]
[1745265712940,4.8768,1575.3,1575.0,49.22347]
[1745265713143,3.2078,1575.1,1575.0,10.24287]
[1745265713440,3.2078,1575.1,1575.0,8.9731]
[1745265713643,4.47753,1575.1,1575.0,8.9731]
[1745265713838,6.26973,1575.1,1575.0,8.9731]
[1745265714138,5.0,1575.1,1575.0,10.24291]
[1745265714936,6.26973,1575.1,1575.0,10.24291]
[1745265715135,5.0,1575.1,1575.0,10.24291]
[1745265716341,3.2078,1575.3,1575.0,13.9731]
[1745265716539,3.2078,1575.3,1575.2,1.26965]
[1745265717139,3.2078,1575.3,1575.2,7.41565]
[1745265717442,4.47737,1575.3,1575.2,6.146]
[1745265717643,6.29867,1575.3,1575.2,6.146]
[1745265717842,7.51102915,1575.3,1575.2,6.146]
[1745265718045,12.51102915,1575.3,1575.2,6.146]
[1745265718340,1.26981,1575.0,1574.9,1.6725]
[1745265718539,1.26989,1574.9,1574.8,8.3e-07]
[1745265718737,3.09119,1574.9,1574.8,8.3e-07]
[1745265720534,9.86503743,1574.9,1574.8,8.3e-07]
[1745265721140,9.751625,1574.9,1574.8,8.3e-07]
[1745265723344,3.09119,1574.9,1574.8,8.3e-07]
[1745265723546,3.20458544,1574.9,1574.8,8.3e-07]
[1745265723936,3.09119,1574.9,1574.8,8.3e-07]
[1745265724344,3.20458489,1574.9,1574.8,1.68340083]
[1745265724646,3.09119,1574.9,1574.8,1.68340083]
[1745265724944,1.26989,1574.9,1574.8,1.68340083]
[1745265725243,1.26989,1574.9,1574.8,2.95330083]
[1745265726638,1.26989,1574.9,1574.8,1.68340083]
[1745265727444,3.2078,1575.4,1575.3,1.26957]
[1745265727642,3.21731083,1575.6,1575.0,3.17453]
[1745265727846,0.00951083,1575.6,1575.5,1.26941]
[1745265728244,0.00951083,1575.6,1575.5,6.26941]
[1745265728444,0.00951083,1575.6,1575.5,8.08101]
[1745265728842,4.19742179,1575.9,1575.8,1.26917]
[1745265729140,4.19742179,1575.9,1575.8,4.47697]
[1745265729347,4.19742179,1575.9,1575.8,9.47697]
[1745265729949,4.19742179,1575.9,1575.8,6.26917]
[1745265730645,6.34856807,1576.0,1575.8,6.26917]
[1745265730646,0.00951083,1576.0,1575.9,1.26909]
[1745265730953,0.00951083,1576.0,1575.9,4.10709]
[1745265731149,0.00951083,1576.0,1575.9,15.25309]
[1745265731452,0.00951083,1576.0,1575.9,10.25309]
[1745265733655,3.2078,1576.2,1576.1,1.26892]
[1745265733944,3.2078,1576.4,1576.3,1.26876]
[1745265734151,1.26876,1576.3,1576.0,6.146]
[1745265734345,3.2078,1576.2,1576.1,1.26892]
[1745265735052,5.0356,1576.2,1576.1,1.26892]
[1745265735446,0.00950999,1576.3,1576.2,1.26884]
[1745265736255,0.00950999,1576.3,1576.2,7.41484]
[1745265736454,1.27826999,1576.3,1576.2,7.41484]
[1745265736754,4.48606999,1576.3,1576.2,7.41484]
[1745265736959,3.21730999,1576.3,1576.2,7.41484]
[1745265738151,4.88050999,1576.3,1576.2,7.41484]
[1745265739051,6.14926999,1576.3,1576.2,7.41484]
[1745265739457,4.88050999,1576.3,1576.2,7.41484]
[1745265740058,6.14926999,1576.3,1576.2,7.41484]
[1745265740859,6.14926999,1576.3,1576.2,6.146]
[1745265741156,6.14926999,1576.3,1576.2,7.41484]
[1745265741354,6.14926999,1576.3,1576.2,6.146]
[1745265741658,18.15332713,1576.3,1576.2,6.13648834]
[1745265741844,18.26663415,1576.3,1576.2,6.13648834]
[1745265742260,1.26909,1575.9,1575.8,3.03444]
[1745265742459,7.7928,1576.0,1575.9,1.26909]
[1745265742752,10.88426,1576.0,1575.9,1.26909]
[1745265742947,3.2078,1576.2,1576.1,1.26892]
[1745265743149,3.09124,1576.2,1576.1,1.26892]
[1745265743361,1.26892,1576.1,1576.0,7.41495]
[1745265743555,5.0302,1576.2,1576.0,7.9113]
[1745265743756,5.0302,1576.2,1576.1,1.26892]
[1745265744060,3.2078,1576.2,1576.1,3.07492]
[1745265744857,4.47664,1576.2,1576.1,3.07492]
[1745265747760,3.2078,1576.2,1576.1,3.07492]
[1745265748064,0.00950999,1576.3,1576.2,1.26884]
[1745265748450,1e-08,1576.3,1576.2,6.26884]
[1745265748856,1e-08,1576.3,1576.2,8.05894]
[1745265749057,1e-08,1576.3,1576.2,3.05894]
[1745265749365,1e-08,1576.3,1576.2,9.20494]
[1745265749555,1.26876001,1576.3,1576.2,9.20494]
[1745265749861,1e-08,1576.3,1576.2,9.20494]
[1745265750359,1.26876001,1576.3,1576.2,7.9361]
[1745265750562,1.26876001,1576.3,1576.2,9.20494]
[1745265750763,1.26876001,1576.3,1576.2,7.9361]
[1745265750961,1.26876001,1576.3,1576.2,9.20494]
[1745265750962,3.01956001,1576.3,1576.2,9.20494]
[1745265751666,1e-08,1576.3,1576.2,9.20494]
[1745265752267,1e-08,1576.3,1576.2,14.20494]
[1745265752466,1e-08,1576.3,1576.2,9.20494]
[1745265756268,1e-08,1576.3,1576.2,13.73294]
[1745265756971,1e-08,1576.3,1576.2,18.73294]
[1745265757167,1.6774,1577.0,1576.9,1.26828]
[1745265757572,1.6774,1577.1,1577.0,1.26812]
[1745265758070,2.94552,1577.1,1577.0,3.00342]
[1745265758270,1.26828,1576.9,1576.8,42.06831]
[1745265759074,1.26836,1576.8,1576.7,1.74481083]
[1745265759276,2.93136,1576.8,1576.7,6.15551083]
[1745265759683,4.05466,1576.8,1576.7,6.15551083]
[1745265760081,9.05466,1576.8,1576.7,6.15551083]
[1745265761582,4.05466,1576.8,1576.7,6.15551083]
[1745265764182,4.05466,1576.8,1576.7,7.42395083]
[1745265764488,4.05466,1576.8,1576.7,6.15551083]
[1745265768480,9.05466,1576.8,1576.7,6.14600086]
[1745265769179,9.05466,1576.8,1576.7,8.6e-07]
[1745265770284,9.16787093,1576.8,1576.7,8.6e-07]
[1745265770482,16.18312886,1576.8,1576.7,8.6e-07]
[1745265771385,16.18312298,1576.8,1576.7,8.6e-07]
[1745265771586,16.2963261,1576.8,1576.7,8.6e-07]
[1745265773078,16.29635312,1576.8,1576.7,8.6e-07]
[1745265776889,11.29635312,1576.8,1576.7,8.6e-07]
[1745265777090,3.04456505,1576.8,1576.7,8.6e-07]
[1745265777292,1.38156505,1576.8,1576.7,7.41444086]
[1745265777599,1.38156505,1576.8,1576.7,6.14600086]
[1745265777800,3.21626505,1576.8,1576.7,7.41444086]
[1745265777990,3.21626505,1576.8,1576.7,6.14600086]
[1745265780400,7.74326505,1576.8,1576.7,6.14600086]
[1745265780695,1.26892,1576.1,1576.0,3.2078]
[1745265780991,1.26884,1576.2,1576.1,1.6616]
[1745265781197,1.26892,1576.1,1576.0,8.2858]
[1745265781388,3.09022,1576.1,1576.0,9.9474]
[1745265781698,6.29802,1576.1,1576.0,11.21641]
[1745265781899,1.26892,1576.1,1576.0,16.21641]
[1745265782297,1.26892,1576.1,1576.0,11.21641]
[1745265782595,4.527,1576.2,1576.1,1.26892]
[1745265782796,4.508,1576.6,1576.4,1.26867]
[1745265782999,5.77652,1576.6,1576.5,2.7518]
[1745265783200,1.2686,1576.5,1576.4,6.146]
[1745265783393,3.0899,1576.5,1576.4,6.146]
[1745265785602,10.09645291,1576.5,1576.4,6.146]
[1745265785800,10.20954821,1576.5,1576.4,3.02295]
[1745265786001,15.20954821,1576.5,1576.4,1.12998]
[1745265786202,1.26892,1576.1,1576.0,1.0831]
[1745265786502,4.47672,1576.1,1576.0,1.0831]
[1745265786702,1.26901,1576.0,1575.9,2.83221083]
[1745265786890,3.01851,1576.0,1575.9,2.83221083]
[1745265787402,3.01851,1576.0,1575.9,8.97821083]
[1745265787595,1.26901,1576.0,1575.9,8.97821083]
[1745265787795,4.48628083,1576.1,1575.9,13.97821083]
[1745265787995,4.48628083,1576.1,1576.0,2.7649]
[1745265788200,4.48628083,1576.1,1576.0,4.03391]
[1745265788503,0.00951083,1576.1,1576.0,9.03391]
[1745265789301,0.00951083,1576.1,1576.0,15.17991]
[1745265790004,1.27843083,1576.1,1576.0,15.17991]
[1745265790603,4.48623083,1576.1,1576.0,8.9109]
[1745265791500,1.26925,1575.7,1575.6,11.19753006]
[1745265791803,1.26933,1575.6,1575.5,8.45184211]
[1745265792000,3.19623952,1575.6,1575.5,8.45184211]
[1745265792199,9.95965131,1575.6,1575.5,8.45184211]
[1745265793103,10.99325131,1575.6,1575.5,8.45184211]
[1745265794105,10.88024179,1575.6,1575.5,8.45184211]
[1745265794406,3.08323,1575.6,1575.5,8.45184211]
[1745265795310,3.08323,1575.6,1575.5,10.12884211]
[1745265795911,3.08323,1575.6,1575.5,8.45184211]
[1745265796108,1.26941,1575.5,1575.4,0.00951083]
[1745265796409,6.20841,1575.5,1575.4,0.00951083]
[1745265797405,18.23775819,1575.5,1575.4,8.3e-07]
[1745265797609,13.23775819,1575.5,1575.4,8.3e-07]
[1745265797910,1.26965,1575.2,1575.1,1.1335]
[1745265798212,8.98845,1575.2,1575.1,1.1335]
[1745265799511,8.98845,1575.2,1575.1,2.9196]
[1745265801813,8.98845,1575.2,1575.1,4.18933]
[1745265802512,4.47745,1575.2,1575.1,4.18933]
[1745265803509,4.47745,1575.2,1575.1,2.9196]
[1745265803711,4.47745,1575.2,1575.1,4.18933]
[1745265806112,4.47745,1575.2,1575.1,2.9196]
[1745265806699,6.23895,1575.2,1575.1,2.9196]
[1745265806905,1.26973,1575.1,1575.0,6.15551083]
[1745265807400,3.03123,1575.1,1575.0,6.15551083]
[1745265807599,12.54323,1575.1,1575.0,4.33094083]
[1745265807801,18.49732342,1575.1,1574.3,4.47816]
[1745265808006,1.27021,1574.5,1574.4,1.8418]
[1745265808205,1.27021,1574.5,1574.4,7.9878]
[1745265809109,4.47801,1574.5,1574.4,6.146]
[1745265809316,1.27029,1574.4,1574.3,1.85131083]
[1745265809515,1.27029,1574.4,1574.3,3.12169083]
[1745265809713,1.27029,1574.4,1574.3,1.85131083]
[1745265810114,2.97869,1574.4,1574.3,1.85131083]
[1745265810916,2.97869,1574.4,1574.3,0.00951083]
[1745265811218,7.49169,1574.4,1574.3,0.00951083]
[1745265813617,8.59069,1574.4,1574.3,0.00951083]
[1745265814215,7.49169,1574.4,1574.3,0.00951083]
[1745265814617,7.49169,1574.4,1574.3,1.72921083]
[1745265815117,7.49169,1574.4,1574.3,0.00951083]
[1745265815924,7.49169,1574.4,1574.3,1.27989083]
[1745265816114,7.49169,1574.4,1574.3,1.72921083]
[1745265816524,7.49169,1574.4,1574.3,2.99959083]
[1745265816821,7.49169,1574.4,1574.3,1.72921083]
[1745265817018,7.49169,1574.4,1574.3,2.99959083]
[1745265817421,7.49169,1574.4,1574.3,1.72921083]
[1745265819826,7.49169,1574.4,1574.3,0.00951083]
[1745265821313,7.49169,1574.4,1574.3,1.27989083]
[1745265821518,7.49169,1574.4,1574.3,2.94459083]
[1745265821718,7.49169,1574.4,1574.3,4.04839083]
[1745265821919,4.513,1574.4,1574.3,4.04839083]
[1745265822119,4.513,1574.4,1574.3,5.17509083]
[1745265822321,3.21731083,1574.5,1574.4,1.27029]
[1745265822523,0.00951083,1574.5,1574.4,2.93499]
[1745265822719,3.2078,1574.7,1574.6,1.27013]
[1745265822919,1.27013,1574.6,1574.5,1.6647]
[1745265823235,1.27013,1574.6,1574.3,6.75401083]
[1745265823236,1.27029,1574.4,1574.3,3.51032083]
[1745265823421,3.2078,1574.4,1574.3,5.24172083]
[1745265823924,3.2078,1574.4,1574.3,10.24172083]
[1745265825328,0.00951083,1574.5,1574.4,1.27029]
[1745265825527,0.00951083,1574.5,1574.4,3.00169]
[1745265825825,0.00951083,1574.5,1574.4,8.00169]
[1745265826029,0.00951083,1574.5,1574.4,3.00169]
[1745265826332,0.00951083,1574.5,1574.4,9.14769]
[1745265826526,1.27972083,1574.5,1574.4,9.14769]
[1745265826833,1.27972083,1574.5,1574.4,7.8774]
[1745265827128,1.27972083,1574.5,1574.4,9.14769]
[1745265828029,1.27972083,1574.5,1574.4,7.8774]
[1745265828229,2.98022083,1574.5,1574.4,9.14769]
[1745265828528,2.98022083,1574.5,1574.4,7.8774]
[1745265828728,2.98022083,1574.5,1574.4,9.14769]
[1745265830438,0.00951083,1574.5,1574.4,9.14769]
[1745265833428,3.2078,1574.6,1574.5,1.27021]
[1745265833628,3.2078,1574.6,1574.5,3.08511]
[1745265833937,3.2078,1574.6,1574.5,8.08511]
[1745265834135,3.2078,1574.6,1574.5,14.23111]
[1745265835439,3.2078,1574.6,1574.5,9.23111]
[1745265836835,4.47793,1574.6,1574.5,9.23111]
[1745265837736,3.2078,1574.6,1574.5,9.23111]
[1745265837933,4.47793,1574.6,1574.5,9.23111]
[1745265838132,3.2078,1574.6,1574.5,9.23111]
[1745265838936,4.47793,1574.6,1574.5,9.23111]
[1745265839238,6.28463,1574.6,1574.5,9.23111]
[1745265840631,6.28463,1574.6,1574.5,7.9609]
[1745265840833,11.28463,1574.6,1574.5,6.12697833]
[1745265841138,1.27029,1574.4,1574.3,0.00951083]
[1745265841335,4.47809,1574.4,1574.3,0.00951083]
[1745265841733,6.23949,1574.4,1574.3,0.00951083]
[1745265841942,11.23949,1574.4,1574.3,0.00951083]
[1745265843441,6.23949,1574.4,1574.3,0.00951083]
[1745265844242,6.23949,1574.4,1574.3,1.27989083]
[1745265844442,6.23949,1574.4,1574.3,0.00951083]
[1745265846645,11.23949,1574.4,1574.3,0.00951083]
[1745265846846,13.42936995,1574.4,1574.3,0.00951083]
[1745265847035,6.35250942,1574.4,1574.3,0.00951083]
[1745265847339,6.23949,1574.4,1574.3,0.00951083]
[1745265848645,6.35251844,1574.4,1574.3,0.00951083]
[1745265848842,6.23949,1574.4,1574.3,0.00951083]
[1745265850644,6.35249701,1574.4,1574.3,0.00951083]
[1745265851436,11.35249701,1574.4,1574.3,0.00951083]
[1745265851642,18.09596157,1574.4,1574.3,0.00951083]
[1745265852948,6.35249701,1574.4,1574.3,0.00951083]
[1745265853843,6.35250812,1574.4,1574.3,0.00951083]
[1745265854848,10.54992991,1574.4,1574.3,0.00951083]
[1745265855241,10.54992552,1574.4,1574.3,0.00951083]
[1745265856747,10.54991756,1574.4,1574.3,0.00951083]
[1745265859544,7.40522179,1574.4,1574.3,1.27989083]
[1745265859750,7.40522179,1574.4,1574.3,7.97359083]
[1745265859952,6.33905724,1574.5,1574.4,1.27029]
[1745265860248,6.33905724,1574.5,1574.4,9.10999]
[1745265860449,6.33905724,1574.5,1574.4,14.10999]
[1745265860756,6.33905724,1574.5,1574.4,54.90999]
[1745265861151,9.55636807,1574.7,1574.6,1.27013]
[1745265861642,9.55636807,1574.7,1574.6,6.27013]
[1745265862044,9.55636807,1574.7,1574.6,7.96383]
[1745265862450,9.55636807,1574.7,1574.6,2.96383]
[1745265863649,6.34856807,1574.7,1574.6,2.96383]
[1745265863852,6.34856807,1574.7,1574.6,7.96383]
[1745265864355,9.55636807,1574.7,1574.6,7.96383]
[1745265864651,9.55636807,1574.7,1574.6,2.96383]
[1745265865545,3.21731083,1574.7,1574.6,2.96383]
[1745265868150,4.3257,1575.2,1574.6,6.6937]
[1745265868341,6.0408,1575.2,1575.1,1.26973]
[1745265868750,6.0408,1575.2,1575.1,3.01673]
[1745265869246,7.31045,1575.2,1575.1,1.26973]
[1745265869746,1.26973,1575.1,1575.0,6.146]
[1745265869945,3.02533,1575.1,1575.0,7.41581]
[1745265870151,3.02533,1575.1,1575.0,1.26981]
[1745265871258,1.7556,1575.1,1575.0,1.26981]
[1745265871556,3.02533,1575.1,1575.0,1.26981]
[1745265871747,1.7556,1575.1,1575.0,1.26981]
[1745265871948,1.7556,1575.1,1575.0,3.00731]
[1745265872157,1.7556,1575.1,1575.0,9.15331]
[1745265873554,1.7556,1575.1,1575.0,10.33991]
[1745265875661,4.9634,1575.1,1575.0,10.33991]
[1745265876360,3.2078,1575.1,1575.0,10.33991]
[1745265877563,4.8941,1575.1,1575.0,10.33991]
[1745265877762,6.16383,1575.1,1575.0,10.33991]
[1745265878357,6.16383,1575.1,1575.0,7.41581]
[1745265879054,6.16383,1575.1,1575.0,6.146]
[1745265879258,1.26989,1575.0,1574.9,1.26987]
[1745265879563,2.97037,1575.0,1574.9,1.26989]
[1745265880268,2.97037,1575.0,1574.9,7.41589]
[1745265882567,1.7005,1575.0,1574.9,7.41589]
[1745265882959,1.7005,1575.0,1574.9,9.09109]
[1745265883773,2.97031,1575.0,1574.9,9.09109]
[1745265884574,2.97031,1575.0,1574.9,7.41589]
[1745265886775,2.97031,1575.0,1574.9,9.11729]
[1745265886979,2.97031,1575.0,1574.9,7.41589]
[1745265887979,2.97031,1575.0,1574.9,6.146]
[1745265888178,3.17494,1574.8,1574.5,4.47795]
[1745265888378,2.37303,1574.7,1574.6,1.27012]
[1745265888578,4.03653,1574.7,1574.6,1.27012]
[1745265889279,1.6635,1574.7,1574.6,1.27012]
[1745265889476,1.6635,1574.7,1574.6,2.96512]
[1745265889673,1.6635,1574.7,1574.6,4.13332]
[1745265890482,10.07422,1575.0,1574.9,1.26989]
[1745265890778,11.74582,1575.0,1574.9,1.26989]
[1745265890980,7.23582,1575.0,1574.9,1.26989]
[1745265891184,1.26989,1574.9,1574.8,1.26992]
[1745265891382,1.27003,1574.8,1574.7,1.27002]
[1745265892383,2.94163,1574.8,1574.7,7.41602]
[1745265892683,2.94163,1574.8,1574.7,6.146]
[1745265892881,2.94163,1574.8,1574.7,7.41605]
[1745265893284,1.6716,1574.8,1574.7,7.41605]
[1745265893477,1.6716,1574.8,1574.7,9.11815]
[1745265893775,2.94157,1574.8,1574.7,9.11815]
[1745265896385,2.94157,1574.8,1574.7,7.41605]
[1745265897085,1.26997,1574.8,1574.7,7.41605]
[1745265897286,1.26997,1574.8,1574.7,9.21705]
[1745265897885,5.77996,1574.9,1574.8,1.26997]
[1745265898085,5.77996,1574.9,1574.8,3.07097]
[1745265898386,5.77996,1574.9,1574.8,4.18857]
[1745265898987,5.77996,1574.9,1574.8,2.9186]
[1745265899793,1.26996,1574.9,1574.8,2.9186]
[1745265900386,1.26996,1574.9,1574.8,4.18857]
[1745265901283,1.26996,1574.9,1574.8,2.9186]
[1745265901884,1.26996,1574.9,1574.8,4.18857]
[1745265902488,1.26996,1574.9,1574.8,2.9186]
[1745265902791,1.26996,1574.9,1574.8,4.18857]
[1745265906789,1.26996,1574.9,1574.8,2.9186]
[1745265907183,3.06026,1574.9,1574.8,4.18857]
[1745265907383,3.06026,1574.9,1574.8,2.9186]
[1745265908879,6.26806,1574.9,1574.8,4.18857]
[1745265909896,6.26806,1574.9,1574.8,2.9186]
[1745265910395,1.26997,1574.8,1574.7,6.146]
[1745265910697,3.04777,1574.8,1574.7,6.146]
[1745265910994,3.04777,1574.8,1574.7,9.16735]
[1745265911686,3.04777,1574.8,1574.7,7.8973]
[1745265912094,3.04777,1574.8,1574.7,9.16735]
[1745265912281,3.04777,1574.8,1574.7,7.8973]
[1745265912486,3.04777,1574.8,1574.7,9.16735]
[1745265914996,3.04777,1574.8,1574.7,7.8973]
[1745265915194,3.04777,1574.8,1574.7,9.16735]
[1745265920189,4.23583,1574.6,1574.5,6.146]
[1745265921691,3.2078,1574.7,1574.6,1.27013]
[1745265921998,3.2078,1574.7,1574.6,4.37573]
[1745265922196,6.16315,1574.9,1574.8,1.26997]
[1745265922790,6.16315,1574.9,1574.8,3.10727]
[1745265923798,6.16315,1574.9,1574.7,7.3116]
[1745265923799,1.26997,1574.8,1574.7,8.58159]
[1745265923999,3.11147,1574.8,1574.7,10.39269]
[1745265925096,5.668,1575.0,1574.7,12.29783]
[1745265925400,3.11134,1575.0,1574.9,1.26989]
[1745265925792,3.11134,1575.0,1574.9,2.53679]
[1745265926202,3.11134,1575.0,1574.9,8.68279]
[1745265927906,3.11131,1575.0,1574.9,8.68279]
[1745265928709,1.26981,1575.0,1574.9,8.68279]
[1745265930597,1.26981,1575.0,1574.9,7.4129]
[1745265930906,2.96391,1575.0,1574.9,8.68279]
[1745265931096,2.96391,1575.0,1574.9,10.52299]